Workbook

Sheet OMKOSTNINGER VED OMBYGNING
B1: REGNEARKET OMKOSTNINGER VED OMBYGNING AF KØKKENET
B3: Kategori | C3: Elementer | D3: Antal | E3: Anslåede omkostninger | F3: Faktiske omkostninger | G3: Samlede anslåede omkostninger | H3: Samlede faktiske omkostninger
B4: Skabe | C4: Nedre skabe: Modulær-standard (størrelse i centimeter) | D4: 25 | E4: kr. 5.00 | G4: =Data[[#This Row],[Antal]]*Data[[#This Row],[Anslåede omkostninger]] -> kr. 125 | H4: =Data[[#This Row],[Antal]]*Data[[#This Row],[Faktiske omkostninger]] -> kr. 0
B5: Skabe | C5: Øvre skabe: Modulær-standard (størrelse i centimeter) | D5: 25 | E5: kr. 3.50 | G5: =Data[[#This Row],[Antal]]*Data[[#This Row],[Anslåede omkostninger]] -> kr. 88 | H5: =Data[[#This Row],[Antal]]*Data[[#This Row],[Faktiske omkostninger]] -> kr. 0
B6: Rengøringsapparater | C6: Opvaskemaskine: Standard | D6: 1 | E6: kr. 250.00 | G6: =Data[[#This Row],[Antal]]*Data[[#This Row],[Anslåede omkostninger]] -> kr. 250 | H6: =Data[[#This Row],[Antal]]*Data[[#This Row],[Faktiske omkostninger]] -> kr. 0
B7: Rengøringsapparater | C7: Affaldskværn: Standard | D7: 1 | E7: kr. 175.00 | G7: =Data[[#This Row],[Antal]]*Data[[#This Row],[Anslåede omkostninger]] -> kr. 175 | H7: =Data[[#This Row],[Antal]]*Data[[#This Row],[Faktiske omkostninger]] -> kr. 0
B8: Køkkenudstyr | C8: Område: Sammensætning, standard | D8: 1 | E8: kr. 375.00 | G8: =Data[[#This Row],[Antal]]*Data[[#This Row],[Anslåede omkostninger]] -> kr. 375 | H8: =Data[[#This Row],[Antal]]*Data[[#This Row],[Faktiske omkostninger]] -> kr. 0
B9: Køkkenudstyr | C9: Mikrobølgeovn: Standard | D9: 1 | E9: kr. 300.00 | G9: =Data[[#This Row],[Antal]]*Data[[#This Row],[Anslåede omkostninger]] -> kr. 300 | H9: =Data[[#This Row],[Antal]]*Data[[#This Row],[Faktiske omkostninger]] -> kr. 0
B10: Køkkenborde | C10: Massiv overflade (størrelse i centimeter) | D10: 23 | E10: kr. 10.00 | G10: =Data[[#This Row],[Antal]]*Data[[#This Row],[Anslåede omkostninger]] -> kr. 230 | H10: =Data[[#This Row],[Antal]]*Data[[#This Row],[Faktiske omkostninger]] -> kr. 0
B11: Døre | C11: Interiør: Fineret massiv | D11: 1 | E11: kr. 65.00 | G11: =Data[[#This Row],[Antal]]*Data[[#This Row],[Anslåede omkostninger]] -> kr. 65 | H11: =Data[[#This Row],[Antal]]*Data[[#This Row],[Faktiske omkostninger]] -> kr. 0
B12: Ekstra | C12: Ekstra: Kogende vandhane, standard | D12: 1 | E12: kr. 120.00 | G12: =Data[[#This Row],[Antal]]*Data[[#This Row],[Anslåede omkostninger]] -> kr. 120 | H12: =Data[[#This Row],[Antal]]*Data[[#This Row],[Faktiske omkostninger]] -> kr. 0
B13: Ekstra | C13: Ekstra: Sæbeholder | D13: 1 | E13: kr. 40.00 | G13: =Data[[#This Row],[Antal]]*Data[[#This Row],[Anslåede omkostninger]] -> kr. 40 | H13: =Data[[#This Row],[Antal]]*Data[[#This Row],[Faktiske omkostninger]] -> kr. 0
B14: Vandhaner | C14: Vandhane: Håndtag, standard | D14: 1 | E14: kr. 130.00 | G14: =Data[[#This Row],[Antal]]*Data[[#This Row],[Anslåede omkostninger]] -> kr. 130 | H14: =Data[[#This Row],[Antal]]*Data[[#This Row],[Faktiske omkostninger]] -> kr. 0
B15: Gulv | C15: Laminat (størrelse i kvadratmeter) | D15: 165 | E15: kr. 3.50 | G15: =Data[[#This Row],[Antal]]*Data[[#This Row],[Anslåede omkostninger]] -> kr. 578 | H15: =Data[[#This Row],[Antal]]*Data[[#This Row],[Faktiske omkostninger]] -> kr. 0
B16: Vasketøjsmaskiner | C16: Vaskemaskine: Standard | D16: 1 | E16: kr. 500.00 | G16: =Data[[#This Row],[Antal]]*Data[[#This Row],[Anslåede omkostninger]] -> kr. 500 | H16: =Data[[#This Row],[Antal]]*Data[[#This Row],[Faktiske omkostninger]] -> kr. 0
B17: Vasketøjsmaskiner | C17: Tørretumbler: Standard | D17: 1 | E17: kr. 375.00 | G17: =Data[[#This Row],[Antal]]*Data[[#This Row],[Anslåede omkostninger]] -> kr. 375 | H17: =Data[[#This Row],[Antal]]*Data[[#This Row],[Faktiske omkostninger]] -> kr. 0
B18: Belysning | C18: Belysning: Loftslampe | D18: 4 | E18: kr. 35.00 | G18: =Data[[#This Row],[Antal]]*Data[[#This Row],[Anslåede omkostninger]] -> kr. 140 | H18: =Data[[#This Row],[Antal]]*Data[[#This Row],[Faktiske omkostninger]] -> kr. 0
B19: Køleskabe | C19: Køleskab: Fritstående, luksus | D19: 1 | E19: kr. 1,200.00 | G19: =Data[[#This Row],[Antal]]*Data[[#This Row],[Anslåede omkostninger]] -> kr. 1,200 | H19: =Data[[#This Row],[Antal]]*Data[[#This Row],[Faktiske omkostninger]] -> kr. 0
B20: Køkkenvaske | C20: Dobbeltvask i rustfrit stål | D20: 1 | E20: kr. 125.00 | G20: =Data[[#This Row],[Antal]]*Data[[#This Row],[Anslåede omkostninger]] -> kr. 125 | H20: =Data[[#This Row],[Antal]]*Data[[#This Row],[Faktiske omkostninger]] -> kr. 0
B21: Ventilering | C21: Emhætte: Ventilationskanal | D21: 1 | E21: kr. 180.00 | G21: =Data[[#This Row],[Antal]]*Data[[#This Row],[Anslåede omkostninger]] -> kr. 180 | H21: =Data[[#This Row],[Antal]]*Data[[#This Row],[Faktiske omkostninger]] -> kr. 0
B22: Vægge | C22: Gipsplade (størrelse i kvadratmeter) | D22: 70 | E22: kr. 2.00 | G22: =Data[[#This Row],[Antal]]*Data[[#This Row],[Anslåede omkostninger]] -> kr. 140 | H22: =Data[[#This Row],[Antal]]*Data[[#This Row],[Faktiske omkostninger]] -> kr. 0
B23: Vinduer | C23: Forskydelig | D23: 2 | E23: kr. 120.00 | G23: =Data[[#This Row],[Antal]]*Data[[#This Row],[Anslåede omkostninger]] -> kr. 240 | H23: =Data[[#This Row],[Antal]]*Data[[#This Row],[Faktiske omkostninger]] -> kr. 0
B24: Andet | G24: =Data[[#This Row],[Antal]]*Data[[#This Row],[Anslåede omkostninger]] -> kr. 0 | H24: =Data[[#This Row],[Antal]]*Data[[#This Row],[Faktiske omkostninger]] -> kr. 0
B25: Total | E25: =SUBTOTAL(109,Data[Anslåede omkostninger]) -> kr. 4,014.00 | F25: =SUBTOTAL(109,Data[Faktiske omkostninger]) -> kr. 0.00 | G25: =SUBTOTAL(109,Data[Samlede anslåede omkostninger]) -> kr. 5,375.00 | H25: =SUBTOTAL(109,Data[Samlede faktiske omkostninger]) -> kr. 0.00
B26: Subtotal | G26: =SUBTOTAL(109,Data[Samlede anslåede omkostninger]) -> kr. 5,375.00 | H26: =SUBTOTAL(109,Data[Samlede faktiske omkostninger]) -> kr. 0.00
B27: Uventede omkostninger – tilføj 30 % | G27: =G26*0.3 -> kr. 1,612.50 | H27: =H26*0.3 -> kr. 0.00
B28: Total | G28: =SUM(G26:G27) -> kr. 6,987.50 | H28: =SUM(H26:H27) -> kr. 0.00
